fUSD/lending_fUSD_20250208
["ID","MTS","AMOUNT","RATE_DAILY","PERIOD"]
[352340979,1739047843679,-770.71,0.00010545,2]
[352340981,1739047843689,-1065.27,0.00010545,2]
[352340983,1739047843699,-500.0,0.00010545,2]
[352340986,1739047843708,-652.5,0.00010545,2]
[352340989,1739047843718,-500.0,0.00010545,2]
[352340992,1739047843727,-1134.03,0.00010545,2]
[352340994,1739047843736,-1107.51,0.00010545,2]
[352340996,1739047843746,-526.37,0.00010545,2]
[352340998,1739047843755,-642.67,0.00010545,2]
[352341000,1739047843765,-500.0,0.00010545,2]
[352341002,1739047843774,-838.68,0.00010545,2]
[352341004,1739047843784,-866.97,0.00010545,2]
[352341006,1739047843794,-902.98,0.00010545,2]
[352341008,1739047843803,-500.0,0.00010545,2]
[352341010,1739047843814,-546.68,0.00010545,2]
[352341013,1739047843824,-649.99,0.00010545,2]
[352341015,1739047843837,-592.87,0.00010545,2]
[352341017,1739047843847,-1049.19,0.00010545,2]
[352341019,1739047843856,-500.0,0.00010545,2]
[352341021,1739047843865,-694.04,0.00010545,2]
[352341023,1739047843875,-1044.37,0.00010545,2]
[352341025,1739047843884,-522.16,0.00010545,2]
[352341027,1739047843893,-986.8,0.00010545,2]
[352341029,1739047843903,-557.23,0.00010545,2]
[352341031,1739047843913,-500.0,0.00010545,2]
[352341033,1739047843922,-526.39,0.00010545,2]
[352341035,1739047843931,-664.86,0.00010545,2]
[352341037,1739047843942,-533.12,0.00010545,2]
[352341039,1739047843955,-1195.05,0.00010545,2]
[352341041,1739047843965,-500.0,0.00010545,2]
[352341043,1739047843974,-500.0,0.00010545,2]
[352341045,1739047843984,-925.73,0.00010545,2]
[352341047,1739047843994,-500.0,0.00010545,2]
[352341049,1739047844004,-732.26,0.00010545,2]
[352341052,1739047844013,-500.0,0.00010545,2]
[352341054,1739047844022,-500.0,0.00010545,2]
[352341056,1739047844033,-500.0,0.00010545,2]
[352341058,1739047844043,-500.0,0.00010545,2]
[352341060,1739047844052,-748.6,0.00010545,2]
[352341062,1739047844061,-500.0,0.00010545,2]
[352341064,1739047844071,-931.48,0.00010545,2]
[352341066,1739047844080,-606.57,0.00010546,2]
[352341068,1739047844090,-500.0,0.00010546,2]
[352341070,1739047844099,-500.0,0.00010546,2]
[352341072,1739047844108,-617.46,0.00010546,2]
[352341074,1739047844119,-500.0,0.00010546,2]
[352341076,1739047844129,-629.87,0.00010546,2]
[352341078,1739047844139,-630.33094352,0.00010546,2]
[352341080,1739047844149,-500.0,0.00010546,2]
[352341082,1739047844158,-501.21,0.00010546,2]
[352341084,1739047844167,-500.0,0.00010546,2]
[352341086,1739047844177,-500.0,0.00010546,2]
[352341088,1739047844186,-673.03,0.00010546,2]
[352341090,1739047844196,-500.0,0.00010546,2]
[352341092,1739047844206,-523.8,0.00010546,2]
[352341094,1739047844215,-500.0,0.00010546,2]
[352341096,1739047844224,-542.23,0.00010546,2]
[352341098,1739047844233,-537.44,0.00010546,2]
[352341100,1739047844243,-500.0,0.00010546,2]
[352341102,1739047844252,-500.0,0.00010546,2]
[352341104,1739047844263,-500.0,0.00010546,2]
[352341106,1739047844272,-500.0,0.00010546,2]
[352341108,1739047844282,-394.01025647,0.00010546,2]
[352341110,1739047844292,-580.42,0.00010546,2]
[352341112,1739047844302,-500.0,0.00010546,2]
[352341114,1739047844313,-658.32,0.00010546,2]
[352341116,1739047844323,-500.0,0.00010546,2]
[352341118,1739047844332,-500.0,0.00010546,2]
[352341120,1739047844342,-563.67,0.00010546,2]
[352341122,1739047844351,-406.66453114,0.00010546,2]
[352341124,1739047844361,-500.0,0.00010546,2]
[352341126,1739047844371,-500.0,0.00010546,2]
[352341129,1739047844381,-504.18,0.00010546,2]
[352341131,1739047844390,-500.71,0.00010546,2]
[352341132,1739047844400,-500.0,0.00010546,2]
[352341134,1739047844409,-500.0,0.00010546,2]
[352341137,1739047844419,-500.0,0.00010546,2]
[352341139,1739047844428,-500.0,0.00010546,2]
[352341141,1739047844438,-500.0,0.00010546,2]
[352341143,1739047844448,-911.64,0.00010546,2]
[352341145,1739047844458,-831.23,0.00010546,2]
[352341147,1739047844467,-612.44,0.00010546,2]
[352341149,1739047844476,-510.51,0.00010546,2]
[352341151,1739047844486,-516.47,0.00010546,2]
[352341153,1739047844495,-500.0,0.00010546,2]
[352341155,1739047844505,-757.34,0.00010546,2]
[352341157,1739047844515,-573.901302,0.00010546,2]
[352341159,1739047844525,-537.52,0.00010546,2]
[352341161,1739047844535,-500.0,0.00010546,2]
[352341163,1739047844545,-1624.89,0.00010546,2]
[352341165,1739047844555,-887.52,0.00010546,2]
[352341167,1739047844565,-575.78,0.00010546,2]
[352341169,1739047844574,-2692.58,0.00010546,2]
[352341171,1739047844584,-546.680985,0.00010546,2]
[352341174,1739047844595,-500.0,0.00010546,2]
[352341176,1739047844605,-509.2,0.00010546,2]
[352341178,1739047844614,-708.4,0.00010546,2]
[352341180,1739047844624,-500.0,0.00010546,2]
[352341182,1739047844633,-500.0,0.00010546,2]
[352341184,1739047844643,-793.94,0.00010546,2]
[352341186,1739047844654,-500.0,0.00010546,2]
[352341188,1739047844665,-639.6,0.00010546,2]
[352341190,1739047844674,-802.68,0.00010546,2]
[352341192,1739047844684,-989.62,0.00010546,2]
[352341194,1739047844694,-785.41,0.00010546,2]
[352341196,1739047844704,-730.88,0.00010546,2]
[352341198,1739047844714,-500.0,0.00010546,2]
[352341200,1739047844723,-316.01203135,0.00010546,2]
[352341202,1739047844733,-538.67,0.00010546,2]
[352341204,1739047844742,-984.4,0.00010546,2]
[352341206,1739047844752,-500.0,0.00010546,2]
[352341208,1739047844761,-1074.17,0.00010546,2]
[352341210,1739047844772,-907.28,0.00010546,2]
[352341212,1739047844782,-1125.24,0.00010546,2]
[352341214,1739047844792,-500.0,0.00010546,2]
[352341216,1739047844801,-998.90560346,0.00010546,2]
[352341350,1739047846220,-759.7,0.00010271,2]
[352341352,1739047846231,-759.7,0.00010408,2]
[352341354,1739047846241,-1359.85439654,0.00010546,2]
[352341356,1739047846251,-1166.08,0.00010546,2]
[352341358,1739047846261,-502.78,0.00010546,2]
[352341360,1739047846271,-579.27,0.00010546,2]
[352341362,1739047846280,-1051.95,0.00010546,2]
[352341364,1739047846290,-545.96,0.00010546,2]
[352341366,1739047846300,-1573.48,0.00010546,2]
[352341368,1739047846310,-680.9,0.00010546,2]
[352341370,1739047846319,-687.08,0.00010546,2]
[352341372,1739047846329,-667.83,0.00010546,2]
[352341374,1739047846338,-788.17,0.00010546,2]
[352341376,1739047846348,-116.41720346,0.00010546,2]
[352341669,1739047890765,150.0,0.00018874,120]
[352341673,1739048071844,150.0,0.00019233,120]
[352341674,1739048130741,150.0,0.00019522,120]
[352341675,1739048251273,500.0,0.0002,120]
[352341676,1739048251495,500.0,0.0002,120]
[352341677,1739048370711,150.0,0.00019137,120]
[352341678,1739048490738,150.0,0.0001939,120]
[352341679,1739048550735,150.0,0.00018692,120]
[352341680,1739048610935,150.0,0.00019927,120]
[352341682,1739048829723,-779.65,8.219e-05,2]
[352341683,1739048829749,-1417.047,8.836e-05,2]
[352341684,1739048829779,-300.0,8.972e-05,2]
[352341685,1739048850731,150.0,0.00019705,120]
[352341686,1739048859493,1272.303,8.836e-05,2]
[352341695,1739048910902,150.0,0.00016343,120]
[352341697,1739048970853,150.0,0.00016422,120]
[352341722,1739049032217,-637.3681,8.836e-05,2]
[352341724,1739049032227,-300.0,8.972e-05,2]
[352341726,1739049032235,-10000.0,8.973e-05,2]
[352341728,1739049032245,-430.5761,8.973e-05,2]
[352341730,1739049032254,-169.13,9.494e-05,2]
[352341732,1739049032263,-3272.44186657,9.55e-05,2]
[352341734,1739049032272,-1000.0,9.55e-05,2]
[352341736,1739049032281,-170.37,9.736e-05,2]
[352341738,1739049032291,-193.57,9.764e-05,2]
[352341740,1739049032299,-261.16,9.77e-05,2]
[352341742,1739049032309,-420.0,9.869e-05,2]
[352341744,1739049032318,-500.0,9.953e-05,2]
[352341746,1739049032327,-700.0,9.953e-05,2]
[352341748,1739049032337,-150.0,9.999e-05,2]
[352341750,1739049032351,-500.0,0.0001,2]
[352341752,1739049032360,-500.0,0.0001,2]
[352341754,1739049032370,-500.0,0.0001,2]
[352341755,1739049032379,-500.0,0.0001,2]
[352341756,1739049032389,-392.59,0.0001,2]
[352341757,1739049032399,-500.0,0.0001,2]
[352341758,1739049032408,-500.0,0.0001,2]
[352341759,1739049032417,-500.0,0.0001,2]
[352341760,1739049032429,-500.0,0.0001,2]
[352341761,1739049032438,-500.0,0.0001,2]
[352341762,1739049032447,-500.0,0.0001,2]
[352341763,1739049032456,-500.0,0.0001,2]
[352341764,1739049032466,-500.0,0.0001,2]
[352341765,1739049032476,-500.0,0.0001,2]
[352341766,1739049032485,-500.0,0.0001,2]
[352341767,1739049032494,-500.0,0.0001,2]
[352341768,1739049032503,-500.0,0.0001,2]
[352341769,1739049032512,-500.0,0.0001,2]
[352341770,1739049032522,-500.0,0.0001,2]
[352341771,1739049032532,-500.0,0.0001,2]
[352341772,1739049032541,-500.0,0.0001,2]
[352341773,1739049032550,-500.0,0.0001,2]
[352341774,1739049032560,-500.0,0.0001,2]
[352341775,1739049032569,-500.0,0.0001,2]
[352341776,1739049032579,-500.0,0.0001,2]
[352341778,1739049032588,-500.0,0.0001,2]
[352341780,1739049032597,-500.0,0.0001,2]
[352341782,1739049032606,-500.0,0.0001,2]
[352341783,1739049032615,-500.0,0.0001,2]
[352341785,1739049032625,-500.0,0.0001,2]
[352341787,1739049032634,-500.0,0.0001,2]
[352341789,1739049032644,-500.0,0.0001,2]
[352341791,1739049032653,-500.0,0.0001,2]
[352341793,1739049032663,-452.11,0.0001,2]
[352341795,1739049032673,-500.0,0.0001,2]
[352341797,1739049032684,-500.0,0.0001,2]
[352341799,1739049032693,-500.0,0.0001,2]
[352341801,1739049032703,-1282.94,0.0001,2]
[352341803,1739049032712,-404.88,0.00010137,2]
[352341805,1739049032722,-198.16561154,0.0001027,2]
[352341807,1739049032732,-500.0,0.0001027,2]
[352341809,1739049032742,-299.86724268,0.0001027,2]
[352341811,1739049032751,-500.0,0.0001027,2]
[352341813,1739049032761,-608.09577414,0.0001027,2]
[352341815,1739049032770,-500.0,0.00010271,2]
[352341817,1739049032780,-512.91,0.00010271,2]
[352341819,1739049032789,-500.0,0.00010271,2]
[352341821,1739049032798,-500.0,0.00010271,2]
[352341823,1739049032809,-500.0,0.00010271,2]
[352341825,1739049032820,-500.0,0.00010271,2]
[352341827,1739049032830,-500.0,0.00010271,2]
[352341829,1739049032840,-500.0,0.00010271,2]
[352341832,1739049032851,-500.0,0.00010271,2]
[352341833,1739049032860,-500.0,0.00010271,2]
[352341836,1739049032870,-500.0,0.00010271,2]
[352341838,1739049032879,-500.0,0.00010271,2]
[352341839,1739049032889,-500.35948779,0.00010271,2]
[352341841,1739049032898,-500.0,0.00010271,2]
[352341843,1739049032908,-500.0,0.00010271,2]
[352341845,1739049032917,-617.58,0.00010271,2]
[352341847,1739049032927,-500.0,0.00010271,2]
[352341849,1739049032936,-500.0,0.00010271,2]
[352341851,1739049032946,-500.0,0.00010271,2]
[352341853,1739049032955,-547.36,0.00010271,2]
[352341855,1739049032965,-500.0,0.00010271,2]
[352341857,1739049032975,-500.0,0.00010271,2]
[352341859,1739049032984,-500.0,0.00010271,2]
[352341861,1739049032994,-500.0,0.00010271,2]
[352341863,1739049033003,-423.45442683,0.00010271,2]
[352341865,1739049033013,-500.0,0.00010271,2]
[352341867,1739049033025,-500.0,0.00010271,2]
[352341869,1739049033038,-500.0,0.00010271,2]
[352341871,1739049033047,-500.0,0.00010271,2]
[352341873,1739049033056,-500.0,0.00010271,2]
[352341875,1739049033066,-500.0,0.00010271,2]
[352341877,1739049033076,-500.0,0.00010271,2]
[352341878,1739049033085,-500.0,0.00010271,2]
[352341881,1739049033094,-500.0,0.00010271,2]
[352341883,1739049033104,-500.0,0.00010271,2]
[352341885,1739049033115,-677.0,0.00010271,2]
[352341887,1739049033125,-500.0,0.00010271,2]
[352341889,1739049033135,-500.0,0.00010271,2]
[352341891,1739049033146,-500.0,0.00010271,2]
[352341893,1739049033155,-500.0,0.00010271,2]
[352341895,1739049033164,-500.0,0.00010271,2]
[352341897,1739049033174,-500.0,0.00010271,2]
[352341898,1739049033184,-505.69,0.00010271,2]
[352341901,1739049033194,-556.1,0.00010271,2]
[352341903,1739049033203,-500.0,0.00010271,2]
[352341904,1739049033212,-500.0,0.00010271,2]
[352341906,1739049033223,-504.91,0.00010271,2]
[352341909,1739049033233,-383.33298186,0.00010271,2]
[352341910,1739049033258,-500.0,0.00010271,2]
[352341912,1739049033267,-500.0,0.00010271,2]
[352341914,1739049033277,-500.0,0.00010271,2]
[352341916,1739049033286,-958.76325774,0.00010329,2]
[352341917,1739049033296,-500.0,0.00010407,2]
[352341919,1739049033305,-569.05,0.00010407,2]
[352341921,1739049033315,-500.0,0.00010407,2]
[352341923,1739049033324,-484.538842,0.00010407,2]
[352341925,1739049033334,-776.97,0.00010407,2]
[352341927,1739049033345,-462.301454,0.00010407,2]
[352341929,1739049033356,-521.49,0.00010407,2]
[352341931,1739049033365,-500.0,0.00010407,2]
[352341932,1739049033375,-761.41,0.00010407,2]
[352341934,1739049033383,-500.0,0.00010407,2]
[352341936,1739049033394,-500.0,0.00010407,2]
[352341937,1739049033403,-500.0,0.00010407,2]
[352341938,1739049033413,-500.0,0.00010407,2]
[352341939,1739049033424,-709.22,0.00010407,2]
[352341940,1739049033434,-586.02,0.00010407,2]
[352341941,1739049033443,-720.89,0.00010407,2]
[352341942,1739049033453,-650.73,0.00010407,2]
[352341943,1739049033462,-500.0,0.00010407,2]
[352341944,1739049033472,-574.67,0.00010407,2]
[352341945,1739049033481,-500.0,0.00010407,2]
[352341946,1739049033490,-828.18,0.00010407,2]
[352341947,1739049033500,-500.0,0.00010407,2]
[352341948,1739049033509,-500.0,0.00010407,2]
[352341949,1739049033518,-934.97,0.00010407,2]
[352341950,1739049033527,-824.99,0.00010407,2]
[352341951,1739049033537,-1029.27,0.00010407,2]
[352341952,1739049033546,-1014.14,0.00010407,2]
[352341953,1739049033556,-872.1,0.00010407,2]
[352341954,1739049033566,-914.04,0.00010407,2]
[352341955,1739049033575,-518.76,0.00010407,2]
[352341956,1739049033584,-585.28,0.00010407,2]
[352341957,1739049033593,-500.0,0.00010407,2]
[352341958,1739049033602,-1367.54,0.00010407,2]
[352341959,1739049033611,-758.59,0.00010407,2]
[352341960,1739049033620,-913.83,0.00010407,2]
[352341961,1739049033630,-500.0,0.00010407,2]
[352341962,1739049033640,-500.0,0.00010407,2]
[352341963,1739049033649,-594.58,0.00010407,2]
[352341964,1739049033659,-500.0,0.00010407,2]
[352341965,1739049033669,-863.45,0.00010407,2]
[352341966,1739049033678,-787.26,0.00010407,2]
[352341967,1739049033688,-918.04,0.00010407,2]
[352341968,1739049033697,-500.0,0.00010407,2]
[352341969,1739049033706,-500.0,0.00010407,2]
[352341970,1739049033716,-1422.96,0.00010407,2]
[352341971,1739049033725,-500.0,0.00010407,2]
[352341972,1739049033735,-719.91,0.00010407,2]
[352341973,1739049033744,-1092.31,0.00010407,2]
[352341974,1739049033755,-500.0,0.00010407,2]
[352341975,1739049033764,-500.0,0.00010407,2]
[352341976,1739049033774,-500.0,0.00010407,2]
[352341977,1739049033784,-500.0,0.00010407,2]
[352341978,1739049033794,-500.0,0.00010407,2]
[352341979,1739049033804,-500.0,0.00010407,2]
[352341980,1739049033814,-622.33,0.00010407,2]
[352341981,1739049033824,-500.0,0.00010407,2]
[352341982,1739049033835,-889.66,0.00010407,2]
[352341983,1739049033845,-500.0,0.00010407,2]
[352341984,1739049033855,-666.73,0.00010407,2]
[352341985,1739049033865,-758.75,0.00010407,2]
[352341986,1739049033875,-500.0,0.00010407,2]
[352341987,1739049033884,-500.0,0.00010407,2]
[352341988,1739049033894,-500.0,0.00010407,2]
[352341989,1739049033904,-500.0,0.00010407,2]
[352341990,1739049033914,-500.0,0.00010408,2]
[352341991,1739049033924,-500.0,0.00010408,2]
[352341992,1739049033934,-500.0,0.00010408,2]
[352341993,1739049033944,-500.0,0.00010408,2]
[352341994,1739049033954,-500.0,0.00010408,2]
[352341995,1739049033963,-500.0,0.00010408,2]
[352341996,1739049033973,-500.0,0.00010408,2]
[352341997,1739049033983,-500.0,0.00010408,2]
[352341998,1739049033992,-500.0,0.00010408,2]
[352341999,1739049034002,-551.66,0.00010408,2]
[352342000,1739049034011,-500.0,0.00010408,2]
[352342001,1739049034020,-500.0,0.00010408,2]
[352342002,1739049034030,-500.0,0.00010408,2]
[352342003,1739049034040,-500.0,0.00010408,2]
[352342004,1739049034049,-357.25416946,0.00010408,2]
[352342005,1739049034059,-500.0,0.00010408,2]
[352342006,1739049034068,-500.0,0.00010408,2]
[352342007,1739049034078,-624.2,0.00010408,2]
[352342008,1739049034087,-500.0,0.00010408,2]
[352342009,1739049034096,-500.0,0.00010408,2]
[352342010,1739049034106,-500.0,0.00010408,2]
[352342011,1739049034116,-500.0,0.00010408,2]
[352342012,1739049034126,-500.0,0.00010408,2]
[352342013,1739049034136,-500.0,0.00010408,2]
[352342014,1739049034146,-500.0,0.00010408,2]
[352342015,1739049034156,-500.0,0.00010408,2]
[352342016,1739049034166,-500.0,0.00010408,2]
[352342017,1739049034176,-500.0,0.00010408,2]
[352342018,1739049034185,-500.0,0.00010408,2]
[352342019,1739049034195,-500.0,0.00010408,2]
[352342020,1739049034205,-592.8,0.00010408,2]
[352342021,1739049034215,-500.0,0.00010408,2]
[352342022,1739049034224,-500.0,0.00010408,2]
[352342023,1739049034234,-500.0,0.00010408,2]
[352342024,1739049034243,-500.0,0.00010408,2]
[352342025,1739049034253,-510.49853516,0.00010408,2]
[352342026,1739049034262,-500.0,0.00010408,2]
[352342027,1739049034271,-500.0,0.00010408,2]
[352342028,1739049034280,-500.0,0.00010408,2]
[352342029,1739049034290,-500.0,0.00010408,2]
[352342030,1739049034299,-500.0,0.00010408,2]
[352342031,1739049034309,-500.0,0.00010408,2]
[352342032,1739049034318,-500.0,0.00010408,2]
[352342033,1739049034327,-500.0,0.00010408,2]
[352342034,1739049034337,-500.0,0.00010408,2]
[352342035,1739049034349,-500.0,0.00010408,2]
[352342036,1739049034359,-596.44,0.00010408,2]
[352342037,1739049034368,-500.0,0.00010408,2]
[352342038,1739049034378,-500.0,0.00010408,2]
[352342039,1739049034387,-500.0,0.00010408,2]
[352342040,1739049034397,-513.23654344,0.00010408,2]
[352342041,1739049034406,-500.0,0.00010408,2]
[352342042,1739049034626,-500.0,0.00010408,2]
[352342043,1739049034636,-500.0,0.00010408,2]
[352342044,1739049034645,-500.0,0.00010408,2]
[352342045,1739049034655,-500.0,0.00010408,2]
[352342046,1739049034664,-645.2119426,0.00010408,2]
[352342047,1739049034674,-161.5038213,0.00010408,2]
[352342048,1739049034683,-500.0,0.00010408,2]
[352342049,1739049034692,-500.0,0.00010408,2]
[352342050,1739049034702,-500.0,0.00010408,2]
[352342051,1739049034711,-614.23,0.00010408,2]
[352342052,1739049034721,-619.26304612,0.00010408,2]
[352342053,1739049034731,-500.0,0.00010408,2]
[352342054,1739049034740,-500.0,0.00010408,2]
[352342055,1739049034750,-500.0,0.00010408,2]
[352342056,1739049034759,-509.97137665,0.00010408,2]
[352342057,1739049034769,-500.0,0.00010408,2]
[352342058,1739049034778,-501.46877145,0.00010408,2]
[352342059,1739049034787,-500.0,0.00010408,2]
[352342060,1739049034797,-500.0,0.00010408,2]
[352342061,1739049034807,-546.56187109,0.00010408,2]
[352342062,1739049034816,-500.0,0.00010408,2]
[352342063,1739049034825,-500.0,0.00010408,2]
[352342064,1739049034835,-500.52825834,0.00010408,2]
[352342065,1739049034844,-500.0,0.00010408,2]
[352342066,1739049034854,-500.0,0.00010408,2]
[352342067,1739049034864,-500.0,0.00010408,2]
[352342068,1739049034873,-165.8294283,0.00010408,2]
[352342069,1739049034889,-334.1705717,0.00010408,2]
[352342070,1739049034899,-500.87220714,0.00010408,2]
[352342071,1739049034908,-500.0,0.00010408,2]
[352342072,1739049034917,-500.0,0.00010408,2]
[352342073,1739049034927,-45.7545246,0.00010408,2]
[352342074,1739049034942,-454.2454754,0.00010408,2]
[352342075,1739049034952,-500.0,0.00010408,2]
[352342076,1739049034962,-517.84627762,0.00010408,2]
[352342077,1739049034973,-500.0,0.00010408,2]
[352342078,1739049034982,-500.56396794,0.00010408,2]
[352342079,1739049034992,-500.0,0.00010408,2]
[352342080,1739049035002,-501.25284158,0.00010408,2]
[352342081,1739049035011,-500.0,0.00010408,2]
[352342082,1739049035021,-9.13330403,0.00010408,2]
[352342083,1739049035033,-636.35669597,0.00010408,2]
[352342084,1739049035043,-500.0,0.00010408,2]
[352342085,1739049035052,-500.0,0.00010408,2]
[352342086,1739049035061,-437.10188684,0.00010408,2]
[352342087,1739049035071,-500.0,0.00010408,2]
[352342088,1739049035080,-589.83,0.00010408,2]
[352342089,1739049035089,-500.0,0.00010408,2]
[352342090,1739049035099,-500.0,0.00010408,2]
[352342091,1739049035108,-500.0,0.00010408,2]
[352342092,1739049035118,-500.0,0.00010408,2]
[352342093,1739049035127,-500.0,0.00010408,2]
[352342094,1739049035136,-500.0,0.00010408,2]
[352342095,1739049035145,-500.0,0.00010408,2]
[352342096,1739049035155,-500.0,0.00010408,2]
[352342097,1739049035164,-345.78188563,0.00010408,2]
[352342098,1739049035174,-500.0,0.00010408,2]
[352342099,1739049035184,-500.0,0.00010408,2]
[352342100,1739049035193,-500.0,0.00010408,2]
[352342101,1739049035202,-516.12,0.00010408,2]
[352342102,1739049035212,-500.0,0.00010408,2]
[352342103,1739049035222,-500.0,0.00010408,2]
[352342104,1739049035247,-500.0,0.00010408,2]
[352342105,1739049035257,-511.92,0.00010408,2]
[352342106,1739049035266,-500.0,0.00010408,2]
[352342107,1739049035277,-500.0,0.00010408,2]
[352342108,1739049035286,-500.0,0.00010408,2]
[352342109,1739049035296,-500.0,0.00010408,2]
[352342110,1739049035305,-500.0,0.00010408,2]
[352342111,1739049035316,-500.0,0.00010408,2]
[352342112,1739049035325,-456.1370444,0.00010408,2]
[352342113,1739049035335,-500.0,0.00010408,2]
[352342114,1739049035350,-500.0,0.00010408,2]
[352342115,1739049035360,-500.0,0.00010408,2]
[352342116,1739049035371,-500.0,0.00010408,2]
[352342117,1739049035382,-500.0,0.00010408,2]
[352342118,1739049035392,-500.0,0.00010408,2]
[352342119,1739049035403,-431.91167515,0.00010408,2]
[352342120,1739049035412,-500.0,0.00010408,2]
[352342121,1739049035425,-500.0,0.00010408,2]
[352342122,1739049035436,-174.84081201,0.00010408,2]
[352342123,1739049035453,-374.68918799,0.00010408,2]
[352342124,1739049035463,-500.0,0.00010408,2]
[352342125,1739049035472,-495.66081197,0.00010408,2]
[352342126,1739049035485,-4.33918803,0.00010408,2]
[352342127,1739049035494,-500.0,0.00010408,2]
[352342128,1739049035503,-136.39350179,0.00010408,2]
[352342129,1739049035542,-363.60649821,0.00010408,2]
[352342130,1739049035556,-500.0,0.00010408,2]
[352342131,1739049035566,-98.07257317,0.00010408,2]
[352342132,1739049035584,-401.92742683,0.00010408,2]
[352342133,1739049035594,-617.7,0.00010408,2]
[352342134,1739049035603,-500.0,0.00010408,2]
[352342135,1739049035614,-500.0,0.00010408,2]
[352342136,1739049035624,-500.0,0.00010408,2]
[352342137,1739049035634,-500.0,0.00010408,2]
[352342138,1739049035646,-500.0,0.00010408,2]
[352342139,1739049035656,-500.0,0.00010408,2]
[352342140,1739049035666,-500.0,0.00010408,2]
[352342141,1739049035676,-500.0,0.00010408,2]
[352342142,1739049035686,-500.0,0.00010408,2]
[352342143,1739049035696,-534.88,0.00010408,2]
[352342144,1739049035706,-500.0,0.00010408,2]
[352342145,1739049035716,-500.0,0.00010408,2]
[352342146,1739049035725,-500.0,0.00010408,2]
[352342147,1739049035736,-500.0,0.00010408,2]
[352342148,1739049035746,-500.0,0.00010408,2]
[352342149,1739049035756,-500.0,0.00010408,2]
[352342150,1739049035766,-500.0,0.00010408,2]
[352342151,1739049035776,-500.0,0.00010408,2]
[352342152,1739049035785,-268.25815436,0.00010408,2]
[352342153,1739049035794,-500.0,0.00010408,2]
[352342154,1739049035803,-500.0,0.00010408,2]
[352342155,1739049035815,-646.69,0.00010408,2]
[352342156,1739049035825,-500.0,0.00010408,2]
[352342157,1739049035836,-500.0,0.00010408,2]
[352342158,1739049035845,-500.0,0.00010408,2]
[352342159,1739049035854,-500.0,0.00010408,2]
[352342160,1739049035863,-500.0,0.00010408,2]
[352342161,1739049035873,-185.52530195,0.00010408,2]
[352342162,1739049035885,-275.83066418,0.00010408,2]
[352342169,1739049038154,-723.2,0.00010407,2]
[352342170,1739049038164,-744.6,0.00010407,2]
[352342171,1739049038174,-500.0,0.00010407,2]
[352342172,1739049038183,-38.64403387,0.00010408,2]
[352342173,1739049038194,-500.0,0.00010408,2]
[352342174,1739049038204,-500.0,0.00010408,2]
[352342175,1739049038215,-406.40743534,0.00010408,2]